bitfinex-derivatives/quotes_BTCF0:USTF0_20241015
["timestamp","ask_amount","ask_price","bid_price","bid_amount"]
[1729021086885,0.074964,66709.0,66707.0,0.074965]
[1729021087070,0.002249,66713.0,66706.0,0.17]
[1729021087373,0.002249,66713.0,66706.0,0.184]
[1729021087574,0.002249,66713.0,66711.0,0.3608]
[1729021087771,0.07496,66712.0,66711.0,0.3608]
[1729021087973,0.012249,66713.0,66711.0,0.43576]
[1729021088185,0.009,66712.0,66711.0,0.435761]
[1729021088988,0.08896,66712.0,66711.0,0.436761]
[1729021090185,0.08896,66712.0,66711.0,0.437761]
[1729021090782,0.014,66712.0,66711.0,0.437761]
[1729021091677,0.08896,66712.0,66711.0,0.437761]
[1729021092483,0.014,66712.0,66711.0,0.437761]
[1729021093077,0.08896,66712.0,66711.0,0.437761]
[1729021093985,0.014,66712.0,66711.0,0.437761]
[1729021094382,0.00098,66712.0,66711.0,0.48246709]
[1729021094587,0.17,66736.0,66711.0,1.57228]
[1729021094890,0.0802,66735.0,66734.0,0.074935]
[1729021095585,0.0802,66735.0,66734.0,0.244935]
[1729021095785,0.001,66736.0,66735.0,0.074934]
[1729021096690,0.074923,66745.0,66742.0,0.074925]
[1729021096875,0.26424277,66747.0,66744.0,0.074924]
[1729021097078,0.18932177,66747.0,66743.0,0.3608]
[1729021097276,0.074922,66746.0,66743.0,0.435725]
[1729021097480,0.074923,66745.0,66743.0,0.435725]
[1729021098083,0.26424277,66747.0,66743.0,0.435724]
[1729021098288,0.074923,66745.0,66743.0,0.435724]
[1729021098477,0.01932177,66747.0,66743.0,0.3608]
[1729021098795,0.00224832,66750.0,66746.0,0.17]
[1729021098986,0.00224832,66750.0,66749.0,0.605718]
[1729021099394,0.0825,66756.0,66755.0,0.074911]
[1729021099580,0.0825,66756.0,66755.0,0.435711]
[1729021099889,0.074905,66761.0,66755.0,0.43571]
[1729021100090,0.074905,66761.0,66758.0,0.074908]
[1729021100281,0.0825,66765.0,66759.0,0.074906]
[1729021100478,0.074902,66764.0,66761.0,0.17]
[1729021100681,0.3274,66765.0,66763.0,0.3608]
[1729021100985,0.074901,66764.0,66763.0,0.3608]
[1729021101186,0.00224738,66770.0,66763.0,0.3608]
[1729021101387,0.00224738,66770.0,66769.0,0.605696]
[1729021101695,0.17,66774.0,66772.0,0.074892]
[1729021101880,0.17,66774.0,66769.0,0.3608]
[1729021102078,0.17,66771.0,66770.0,0.074895]
[1729021103285,0.17,66771.0,66770.0,0.075895]
[1729021103693,0.10370935,66788.0,66770.0,0.001]
[1729021103694,0.17,66775.0,66770.0,0.001]
[1729021103890,0.14774226,66772.0,66769.0,0.12201823]
[1729021104192,0.18559209,66771.0,66769.0,0.07702235]
[1729021104394,0.36156,66780.0,66769.0,0.15191835]
[1729021104395,0.24731346,66770.0,66769.0,0.15191835]
[1729021104593,0.115147,66770.0,66769.0,0.32191835]
[1729021104785,0.05328297,66770.0,66769.0,1.37123835]
[1729021104980,0.13216646,66774.0,66772.0,0.074892]
[1729021104981,0.05328297,66773.0,66772.0,0.074892]
[1729021105189,0.17856162,66773.0,66772.0,0.074892]
[1729021105387,0.17852511,66773.0,66772.0,0.074892]
[1729021105594,0.11186262,66773.0,66772.0,0.074892]
[1729021106889,0.11286262,66773.0,66772.0,0.075892]
[1729021107086,0.11008894,66773.0,66772.0,0.075892]
[1729021109290,0.28008894,66773.0,66772.0,0.075892]
[1729021109892,0.11008894,66773.0,66772.0,0.075892]
[1729021111898,0.001,66773.0,66772.0,0.075892]
[1729021114997,0.074879,66785.0,66782.0,0.074881]
[1729021115197,0.17,66786.0,66778.0,0.17]
[1729021115500,0.074883,66781.0,66774.0,0.17]
[1729021115697,0.074883,66781.0,66780.0,0.074883]
[1729021117297,0.075883,66781.0,66780.0,0.075883]
[1729021117499,0.001,66781.0,66780.0,0.076883]
[1729021117998,0.001,66781.0,66780.0,0.002]
[1729021118202,0.075882,66781.0,66780.0,0.002]
[1729021118407,0.234382,66781.0,66780.0,0.002]
[1729021118594,0.25885693,66781.0,66780.0,0.002]
[1729021120298,0.42885693,66781.0,66780.0,0.002]
[1729021120592,0.10035693,66781.0,66780.0,0.002]
[1729021121098,0.02547493,66781.0,66780.0,0.002]
[1729021121294,0.10035693,66781.0,66780.0,0.002]
[1729021121895,0.02547493,66781.0,66780.0,0.002]
[1729021125605,0.10035693,66781.0,66780.0,0.002]
[1729021127000,0.21046719,66781.0,66780.0,0.00066069]
[1729021127205,0.13558519,66781.0,66780.0,0.00066069]
[1729021127902,0.21046719,66781.0,66780.0,0.00066069]
[1729021128302,0.27800537,66781.0,66780.0,0.00066069]
[1729021128700,0.21046719,66781.0,66780.0,0.00066069]
[1729021129401,0.27805448,66781.0,66780.0,0.00066069]
[1729021133101,0.20317248,66781.0,66780.0,0.00066069]
[1729021133514,0.27805448,66781.0,66780.0,0.00066069]
[1729021134007,0.02547493,66781.0,66780.0,0.00066069]
[1729021134216,0.02547493,66781.0,66780.0,0.07554369]
[1729021134413,0.02547493,66781.0,66780.0,0.00066069]
[1729021134709,0.02547493,66781.0,66780.0,0.06026881]
[1729021136015,0.10035693,66781.0,66780.0,0.06026881]
[1729021136716,0.10035693,66781.0,66780.0,0.00066069]
[1729021139211,0.10035693,66781.0,66780.0,0.06026881]
[1729021141021,0.02547493,66781.0,66780.0,0.13515181]
[1729021141516,0.001,66781.0,66780.0,0.07554369]
[1729021141824,0.00224634,66796.0,66795.0,0.074867]
[1729021142117,0.20282542,66796.0,66795.0,0.074867]
[1729021142321,0.27140292,66796.0,66795.0,0.074867]
[1729021142506,0.21133126,66796.0,66795.0,0.074867]
[1729021143215,0.18337496,66796.0,66795.0,0.074867]
[1729021143416,0.18437496,66796.0,66795.0,0.075867]
[1729021143613,0.18437496,66796.0,66795.0,0.089867]
[1729021144007,0.20395657,66796.0,66795.0,0.089867]
[1729021144218,0.12399875,66796.0,66795.0,0.089867]
[1729021144416,0.29727453,66801.0,66795.0,0.259867]
[1729021144613,0.13368104,66805.0,66804.0,0.074857]
[1729021144920,0.06721232,66805.0,66804.0,0.014]
[1729021145117,0.14844629,66805.0,66804.0,0.088857]
[1729021145319,0.06721232,66805.0,66804.0,0.258857]
[1729021145717,0.13360227,66807.0,66804.0,0.184]
[1729021145917,0.14115656,66805.0,66804.0,0.014]
[1729021146117,0.14100746,66805.0,66804.0,0.014]
[1729021146421,0.14100746,66805.0,66804.0,0.028]
[1729021147019,0.14100746,66805.0,66804.0,0.102857]
[1729021147322,0.14100746,66805.0,66804.0,0.116857]
[1729021147526,0.074855,66805.0,66804.0,0.042]
[1729021148025,0.14056984,66805.0,66804.0,0.042]
[1729021148430,0.27419375,66805.0,66804.0,0.042]
[1729021149028,0.074855,66805.0,66804.0,0.042]
[1729021149228,0.09947805,66805.0,66804.0,0.116857]
[1729021152841,0.17,66807.0,66804.0,0.042]
[1729021153043,0.435652,66809.0,66808.0,0.074852]
[1729021153639,0.3608,66809.0,66808.0,0.074852]
[1729021154042,0.38528779,66809.0,66804.0,0.102856]
[1729021154246,0.244855,66805.0,66804.0,0.042]
[1729021154749,0.24691201,66805.0,66804.0,0.042]
[1729021154940,0.24691201,66805.0,66804.0,0.028]
[1729021155545,0.29645044,66805.0,66804.0,0.014]
[1729021155739,0.24691201,66805.0,66804.0,0.028]
[1729021156146,0.24691201,66805.0,66804.0,0.042]
[1729021157057,0.24691201,66805.0,66804.0,0.00976991]
[1729021157058,0.35423969,66805.0,66804.0,0.00976991]
[1729021157241,0.95423969,66805.0,66804.0,0.00976991]
[1729021157441,0.17,66793.0,66782.0,0.17]
[1729021157637,0.05735237,66792.0,66790.0,0.074871]
[1729021157837,0.10701704,66792.0,66791.0,0.07281399]
[1729021158443,0.18188704,66792.0,66791.0,0.07281399]
[1729021159352,0.18488704,66792.0,66791.0,0.07281399]
[1729021159849,0.20935762,66792.0,66791.0,0.07381399]
[1729021160349,0.20935762,66792.0,66791.0,0.002]
[1729021160350,0.22235762,66792.0,66791.0,0.002]
[1729021160544,0.16500525,66792.0,66791.0,0.002]
[1729021160743,0.22044144,66792.0,66791.0,0.002]
[1729021162455,0.22044144,66792.0,66777.0,0.0022459]
[1729021162456,1.25462144,66792.0,66777.0,0.0022459]
[1729021162752,0.074886,66778.0,66777.0,0.07571586]
[1729021163049,0.12352023,66778.0,66777.0,0.07571586]
[1729021163248,0.17998686,66778.0,66777.0,0.07571586]
[1729021163446,0.17998686,66778.0,66777.0,1.20651586]
[1729021163447,0.09012086,66778.0,66777.0,1.20651586]
[1729021163645,0.09012086,66778.0,66777.0,0.60651586]
[1729021164042,0.009,66778.0,66777.0,1.20751586]
[1729021164240,0.3608,66791.0,66790.0,0.074872]
[1729021164649,0.38513761,66791.0,66790.0,0.074872]
[1729021165355,0.46000861,66791.0,66790.0,0.074872]
[1729021165550,0.46400861,66791.0,66790.0,0.075872]
[1729021165747,0.46400861,66791.0,66790.0,0.001]
[1729021166954,0.47800861,66791.0,66790.0,0.002]
[1729021172052,0.47800861,66791.0,66785.0,0.3608]
[1729021172053,0.67405957,66791.0,66785.0,0.3608]
[1729021172258,0.17,66786.0,66785.0,0.435678]
[1729021172454,0.2902979,66786.0,66785.0,0.435678]
[1729021172857,0.2902979,66786.0,66785.0,0.074878]
[1729021173256,0.2902979,66786.0,66785.0,0.075878]
[1729021173457,0.33692831,66786.0,66785.0,0.076878]
[1729021173857,0.34092831,66786.0,66785.0,0.076878]
[1729021174062,0.34092831,66786.0,66785.0,0.075878]
[1729021174262,0.34992831,66786.0,66785.0,0.076878]
[1729021174664,0.29122762,66786.0,66785.0,0.076878]
[1729021174862,0.34534143,66786.0,66785.0,0.076878]
[1729021178962,0.22960777,66786.0,66785.0,0.076878]
[1729021179262,0.183,66786.0,66785.0,0.076878]
[1729021181456,0.013,66786.0,66785.0,0.076878]
[1729021181657,0.17,66798.0,66788.0,0.00198]
[1729021181969,0.00224642,66800.0,66795.0,0.074867]
[1729021182174,0.00026642,66800.0,66799.0,0.074862]
[1729021182465,0.00026642,66800.0,66799.0,0.11968903]
[1729021182666,0.00026642,66800.0,66799.0,0.074862]
[1729021182964,0.19431317,66801.0,66800.0,0.074861]
[1729021183458,0.19431317,66801.0,66798.0,0.074862]
[1729021183459,0.26917317,66801.0,66798.0,0.074862]
[1729021183864,0.014,66800.0,66799.0,0.075861]
[1729021184067,0.088861,66800.0,66799.0,0.075861]
[1729021184667,0.089861,66800.0,66799.0,0.076861]
[1729021184962,0.089861,66800.0,66799.0,0.002]
[1729021185159,0.259861,66800.0,66799.0,0.002]
[1729021185453,0.245861,66800.0,66799.0,0.001]
[1729021186266,0.245861,66800.0,66799.0,0.002]
[1729021190864,0.075861,66800.0,66799.0,0.002]
[1729021191172,0.797461,66800.0,66799.0,0.002]
[1729021194170,0.074863,66799.0,66794.0,0.074867]
[1729021194368,0.17,66795.0,66794.0,0.074867]
[1729021194561,0.33332399,66795.0,66794.0,0.074867]
[1729021194764,0.48185513,66795.0,66794.0,0.074867]
[1729021194971,0.33332399,66795.0,66794.0,0.074867]
[1729021195271,0.48184115,66795.0,66794.0,0.074867]
[1729021195467,0.48184115,66795.0,66794.0,0.075867]
[1729021195668,0.48184115,66795.0,66794.0,0.076867]
[1729021196274,0.34032399,66795.0,66794.0,0.076867]
[1729021197181,0.34032399,66795.0,66794.0,0.002]
[1729021197370,0.34032399,66795.0,66794.0,0.076868]
[1729021197876,0.177,66795.0,66794.0,0.076868]
[1729021198070,0.34049163,66795.0,66794.0,0.076868]
[1729021200473,0.2419438,66795.0,66794.0,0.246868]
[1729021200683,0.1093861,66795.0,66794.0,0.246868]
[1729021200875,0.31409907,66795.0,66794.0,0.246868]
[1729021201073,0.13365248,66797.0,66794.0,1.295988]
[1729021201268,0.11867248,66800.0,66794.0,0.846868]
[1729021201575,0.52417223,66804.0,66803.0,0.074858]
[1729021201776,0.42199012,66804.0,66803.0,0.074858]
[1729021202179,0.34582,66804.0,66803.0,0.244858]
[1729021202379,0.34582,66804.0,66803.0,0.30452528]
[1729021202584,0.34582,66804.0,66803.0,0.244858]
[1729021202982,0.34582,66804.0,66803.0,0.245858]
[1729021203290,0.34682,66804.0,66803.0,0.845858]
[1729021203583,0.3608,66811.0,66810.0,0.08883]
[1729021203782,0.00224604,66814.0,66810.0,0.08883]
[1729021203783,0.02623855,66814.0,66813.0,0.074846]
[1729021203977,0.00224604,66814.0,66813.0,0.074846]
[1729021204784,0.17,66821.0,66813.0,0.074846]
[1729021204988,0.63029619,66817.0,66816.0,0.074843]
[1729021205377,0.63029619,66817.0,66813.0,0.04477771]
[1729021205378,0.074845,66814.0,66813.0,0.11962371]
[1729021205571,0.245845,66814.0,66813.0,0.12562371]
[1729021205776,0.245845,66814.0,66813.0,0.080846]
[1729021205978,0.244845,66814.0,66813.0,0.079846]
[1729021206283,0.244845,66814.0,66813.0,0.074846]
[1729021207878,0.244845,66814.0,66813.0,0.079846]
[1729021208073,0.17,66814.0,66813.0,0.079846]
[1729021210192,0.3608,66817.0,66816.0,0.074843]
[1729021210483,0.5308,66817.0,66816.0,0.074843]
[1729021211079,0.5308,66817.0,66814.0,0.1126]
[1729021211080,0.074844,66815.0,66814.0,0.1126]
[1729021211287,0.074845,66814.0,66813.0,0.074846]
[1729021211585,0.244845,66814.0,66813.0,0.074846]
[1729021212289,0.17,66814.0,66813.0,0.074846]
[1729021212474,0.17,66814.0,66810.0,0.01398]
[1729021212475,0.619,66814.0,66810.0,0.01398]
[1729021212681,0.074866,66797.0,66796.0,0.074865]
[1729021212987,0.074869,66794.0,66793.0,0.074868]
[1729021213187,0.074869,66794.0,66788.0,0.1084]
[1729021213188,0.074873,66789.0,66788.0,0.1084]
[1729021213389,0.435673,66789.0,66788.0,0.1084]
[1729021213580,0.420693,66789.0,66788.0,0.0542]
[1729021213897,0.059898,66786.0,66785.0,0.074877]
[1729021215690,0.059898,66786.0,66785.0,0.091877]
[1729021215890,0.08421508,66786.0,66785.0,0.091877]
[1729021216190,0.25421508,66786.0,66785.0,0.091877]
[1729021217089,0.229898,66786.0,66785.0,0.18241458]
[1729021217692,0.059898,66786.0,66785.0,0.18241458]
[1729021219493,0.214918,66786.0,66785.0,0.09152895]
[1729021219699,0.575718,66786.0,66785.0,0.017]
[1729021219898,0.575718,66786.0,66785.0,0.07662956]
[1729021220103,0.745718,66786.0,66785.0,0.06172117]
[1729021220394,0.575718,66786.0,66785.0,0.017]
[1729021220587,0.575718,66786.0,66778.0,0.05062955]
[1729021220588,0.745718,66786.0,66778.0,0.05062955]
[1729021220792,0.074887,66777.0,66776.0,0.07452895]
[1729021220990,0.5308,66777.0,66768.0,0.074897]
[1729021221199,0.5308,66769.0,66768.0,0.074897]
[1729021221394,0.605696,66769.0,66768.0,0.074897]
[1729021221599,0.0749,66766.0,66757.0,0.3608]
[1729021221789,0.17,66763.0,66762.0,0.074904]
[1729021222097,0.17,66767.0,66762.0,0.09047568]
[1729021222295,0.17,66767.0,66766.0,0.074899]
[1729021224094,0.171,66767.0,66766.0,0.077899]
[1729021224892,0.245898,66767.0,66766.0,0.077899]
[1729021225293,0.245898,66767.0,66766.0,0.091899]
[1729021228105,0.245898,66767.0,66766.0,0.017]
[1729021228298,0.245898,66767.0,66766.0,0.091899]
[1729021237802,0.001,66767.0,66766.0,0.261899]
[1729021238003,0.074887,66777.0,66776.0,0.074888]
[1729021238210,0.3608,66785.0,66780.0,0.074883]
[1729021238211,0.07712884,66781.0,66780.0,0.074883]
[1729021238410,0.24712884,66781.0,66780.0,0.074883]
[1729021239106,0.27189587,66781.0,66780.0,0.074883]
[1729021239305,0.19701387,66781.0,66780.0,0.075883]
[1729021239907,0.19701387,66781.0,66780.0,0.083883]
[1729021240214,0.19801387,66781.0,66780.0,0.083883]
[1729021240911,0.27289587,66781.0,66780.0,0.083883]
[1729021241499,0.27289587,66781.0,66780.0,0.009]
[1729021241500,0.44289587,66781.0,66780.0,0.009]
[1729021241703,0.44289587,66781.0,66774.0,0.01498]
[1729021241704,0.074889,66775.0,66774.0,0.01498]
[1729021241913,0.605689,66775.0,66774.0,0.01498]
[1729021242798,0.605689,66775.0,66774.0,0.02198]
[1729021243107,0.606689,66775.0,66774.0,0.03598]
[1729021246205,0.606689,66775.0,66774.0,0.12661556]
[1729021249309,0.606689,66775.0,66774.0,0.21589717]
[1729021249513,0.606689,66775.0,66774.0,0.12661556]
[1729021250011,0.5318,66775.0,66774.0,0.20150556]
[1729021250211,0.3618,66775.0,66774.0,0.29078717]
[1729021250711,0.3618,66775.0,66774.0,0.30943897]
[1729021250914,0.001,66775.0,66774.0,0.30943897]
[1729021251120,0.001,66775.0,66774.0,0.47103897]
[1729021251416,0.001,66775.0,66774.0,0.49587255]
[1729021251618,0.00224684,66781.0,66774.0,1.59483497]
[1729021251816,0.17,66796.0,66788.0,0.01498]
[1729021252028,0.074868,66794.0,66789.0,0.44251603]
[1729021252212,0.074868,66794.0,66789.0,0.33550856]
[1729021252407,0.38535303,66790.0,66789.0,0.16550856]
[1729021252624,0.3608,66790.0,66789.0,0.44232974]
[1729021252816,0.3608,66790.0,66789.0,0.4422544]
[1729021253016,0.3668,66790.0,66789.0,0.6055544]
[1729021253321,0.3668,66790.0,66789.0,0.4355544]
[1729021253515,0.31636377,66790.0,66789.0,0.4355544]
[1729021254124,0.31636377,66790.0,66789.0,0.3267544]
[1729021254308,0.31636377,66790.0,66789.0,0.22000856]
[1729021255021,0.31436377,66790.0,66789.0,0.22000856]
[1729021255217,0.074871,66792.0,66791.0,0.07487]
[1729021255415,0.074871,66792.0,66791.0,0.16550556]
[1729021256517,0.074871,66792.0,66791.0,0.16784851]
[1729021256720,0.077871,66792.0,66791.0,0.16784851]
[1729021257123,0.003,66792.0,66791.0,0.16784851]
[1729021260630,0.003,66792.0,66791.0,0.07887]
[1729021261722,0.003,66792.0,66791.0,0.004]
[1729021261922,0.07787,66792.0,66791.0,0.004]
[1729021262223,0.07787,66792.0,66791.0,0.078871]
[1729021262437,0.07787,66792.0,66791.0,0.004]
[1729021262827,0.07787,66792.0,66791.0,0.078871]
[1729021263726,0.07787,66792.0,66791.0,0.004]
[1729021266622,0.07787,66792.0,66791.0,0.078871]
[1729021266924,0.003,66792.0,66791.0,0.248871]
[1729021267122,0.003,66792.0,66791.0,0.4620196]
[1729021267727,0.003,66792.0,66791.0,0.2920196]
[1729021267915,0.07787,66792.0,66791.0,0.4620196]
[1729021268320,0.07787,66792.0,66791.0,0.37442409]
[1729021268923,0.003,66792.0,66791.0,0.37442409]
[1729021269127,0.00076,66799.0,66791.0,1.43635436]
[1729021269422,0.3608,66816.0,66815.0,0.074844]
[1729021269627,0.46020782,66816.0,66815.0,0.074844]
[1729021269827,0.02456482,66816.0,66815.0,0.074844]
[1729021270129,0.17,66824.0,66813.0,0.07451357]
[1729021270130,0.17,66820.0,66813.0,0.07451357]
[1729021270434,0.074842,66817.0,66816.0,0.074843]
[1729021270825,0.244842,66817.0,66816.0,0.074843]
[1729021271938,0.258842,66817.0,66816.0,0.075843]
[1729021273030,0.28343518,66817.0,66816.0,0.001]
[1729021274231,0.28443518,66817.0,66816.0,0.002]
[1729021276534,0.64523518,66817.0,66816.0,0.002]
[1729021276834,0.074855,66805.0,66804.0,0.089836]
[1729021277339,0.5308,66811.0,66804.0,0.01498]
[1729021277629,0.074854,66806.0,66805.0,0.074855]
[1729021278036,0.074851,66809.0,66808.0,0.074852]
[1729021278234,0.074855,66806.0,66805.0,0.074855]
[1729021278937,0.084855,66806.0,66805.0,0.075855]
[1729021279241,0.084855,66806.0,66805.0,0.001]
[1729021280038,0.088855,66806.0,66805.0,0.002]
[1729021281626,0.11384431,66806.0,66805.0,0.076855]
[1729021287337,0.03898931,66806.0,66805.0,0.437655]
[1729021288337,0.014,66806.0,66805.0,1.486735]
[1729021288533,0.074836,66822.0,66821.0,0.074837]
[1729021288735,0.074839,66820.0,66818.0,0.074841]
[1729021289040,0.17,66823.0,66818.0,0.074841]
[1729021289839,0.17,66823.0,66813.0,0.53204]
[1729021290162,0.248835,66823.0,66822.0,0.3608]
[1729021290443,0.004,66823.0,66822.0,0.074836]
[1729021291142,0.004,66823.0,66822.0,0.435636]
[1729021292150,0.009,66823.0,66822.0,0.435636]
[1729021292454,0.009,66823.0,66822.0,0.5217898]
[1729021292848,0.005,66823.0,66822.0,0.5227898]
[1729021299358,0.005,66823.0,66822.0,0.436636]
[1729021299661,0.079835,66823.0,66822.0,0.3618]
[1729021300463,0.079835,66823.0,66822.0,0.4214581]
[1729021301861,0.079835,66823.0,66822.0,0.0606581]
[1729021302157,0.074852,66808.0,66804.0,0.08941629]
[1729021302361,0.074857,66804.0,66803.0,0.07710341]
[1729021302557,0.074857,66804.0,66803.0,0.00224541]
[1729021303564,0.074857,66804.0,66803.0,0.01024541]
[1729021304862,0.075857,66804.0,66803.0,0.02424541]
[1729021305559,0.001,66804.0,66803.0,0.02424541]
[1729021305860,0.075857,66804.0,66803.0,0.02424541]
[1729021307262,0.1007307,66804.0,66803.0,0.02424541]
[1729021307955,0.4615307,66804.0,66803.0,0.02424541]
[1729021314866,0.1007307,66804.0,66803.0,0.02424541]
[1729021315072,0.0258737,66804.0,66803.0,0.096858]
[1729021315376,0.17,66815.0,66814.0,0.074845]
[1729021315573,0.17,66815.0,66814.0,0.435645]
[1729021316664,0.17,66815.0,66814.0,0.438645]
[1729021316665,0.171,66815.0,66814.0,0.438645]
[1729021317365,0.001,66815.0,66814.0,0.52366253]
[1729021318275,0.17,66822.0,66821.0,0.074838]
[1729021318770,0.19478981,66822.0,66821.0,0.435638]
[1729021319561,0.19578981,66822.0,66821.0,0.436638]
[1729021320188,0.19978981,66822.0,66821.0,0.436638]
[1729021328576,0.02978981,66822.0,66821.0,0.436638]
[1729021328878,0.005,66822.0,66821.0,0.490938]
[1729021329472,0.005,66822.0,66821.0,0.57564585]
[1729021330576,0.175,66822.0,66821.0,0.57564585]
[1729021330770,0.419836,66822.0,66821.0,0.3618]
[1729021330978,0.175,66822.0,66821.0,0.001]
[1729021331576,0.175,66822.0,66821.0,0.3618]
[1729021331780,0.249836,66822.0,66821.0,0.3618]
[1729021331978,0.419836,66822.0,66821.0,0.001]
[1729021332471,0.249836,66822.0,66821.0,0.001]
[1729021333478,0.175,66822.0,66821.0,0.3618]
[1729021333670,0.175,66822.0,66821.0,0.436638]
[1729021334283,0.005,66822.0,66821.0,0.52137979]
[1729021334585,0.005,66822.0,66821.0,0.59588234]
[1729021334786,0.005,66822.0,66821.0,0.59589373]
[1729021334985,0.175,66822.0,66821.0,0.436638]
[1729021335683,0.175,66822.0,66821.0,0.51116503]
[1729021335895,0.175,66822.0,66821.0,0.436638]
[1729021340488,0.175,66822.0,66821.0,0.885598]
[1729021340489,0.005,66822.0,66821.0,0.885598]
[1729021340687,0.00224482,66836.0,66835.0,0.074822]
[1729021340894,0.00224482,66836.0,66835.0,0.435622]
[1729021341192,0.17224482,66836.0,66835.0,0.3608]
[1729021341493,0.19730659,66836.0,66835.0,0.435622]
[1729021341679,0.19730659,66836.0,66835.0,0.3608]
[1729021341988,0.19730659,66836.0,66835.0,0.7216]
[1729021342779,0.19506177,66836.0,66835.0,0.7216]
[1729021343203,0.19506177,66836.0,66835.0,0.797422]
[1729021343204,0.001,66836.0,66835.0,0.797422]
[1729021343494,0.001,66836.0,66835.0,0.798422]
[1729021343495,0.002,66836.0,66835.0,0.798422]
[1729021343688,0.17,66850.0,66847.0,0.074808]
[1729021343891,0.0559,66853.0,66838.0,0.074817]
[1729021343892,0.2259,66853.0,66849.0,0.3608]
[1729021344095,0.0249339,66853.0,66852.0,0.17]
[1729021344291,0.17,66864.0,66859.0,0.074795]
[1729021344493,0.17,66861.0,66859.0,0.435595]
[1729021344990,0.02712048,66860.0,66859.0,0.435595]
[1729021345200,0.00224448,66860.0,66859.0,0.435595]
[1729021346099,0.00224448,66860.0,66859.0,0.449595]
[1729021346786,0.00224448,66860.0,66859.0,0.463595]
[1729021347986,0.19512429,66861.0,66860.0,0.074794]
[1729021348185,0.36156,66870.0,66863.0,0.07479]
[1729021348186,0.17,66864.0,66863.0,0.07479]
[1729021348390,0.02514396,66870.0,66863.0,0.17]
[1729021348589,0.17,66872.0,66869.0,0.074784]
[1729021348992,0.194404,66872.0,66871.0,0.074782]
[1729021349200,0.194404,66872.0,66869.0,0.074783]
[1729021349692,0.194404,66872.0,66866.0,0.3608]
[1729021349693,0.194404,66872.0,66866.0,0.04461928]
[1729021349892,0.074787,66866.0,66863.0,0.01498]
[1729021350212,0.17,66864.0,66863.0,0.01398]
[1729021351291,0.244789,66864.0,66863.0,0.01398]
[1729021351687,0.28609036,66864.0,66863.0,0.06896669]
[1729021352193,0.28609109,66864.0,66863.0,0.06896669]
[1729021352393,0.11609109,66864.0,66863.0,0.001]
[1729021352792,0.11609109,66864.0,66863.0,0.07579]
[1729021353191,0.11609109,66864.0,66863.0,0.07679]
[1729021353395,0.14007957,66864.0,66863.0,0.07679]
[1729021353894,0.11609109,66864.0,66863.0,0.07679]
[1729021354209,0.11609109,66864.0,66863.0,0.001]
[1729021354590,0.11609109,66864.0,66863.0,0.07579]
[1729021354791,0.05371984,66864.0,66863.0,0.43659]
[1729021355688,0.05371984,66864.0,66863.0,0.60659]
[1729021355907,0.03875984,66864.0,66863.0,0.60659]
[1729021356092,0.03875984,66864.0,66863.0,0.43659]
[1729021358906,0.03875984,66864.0,66863.0,0.60659]
[1729021359804,0.074785,66869.0,66868.0,0.074785]
[1729021360001,0.074785,66869.0,66868.0,0.244785]
[1729021360207,0.19420282,66874.0,66868.0,0.244785]
[1729021360396,0.074783,66872.0,66871.0,0.074779]
[1729021362897,0.19420282,66874.0,66871.0,0.001]
[1729021363093,0.07478,66872.0,66871.0,0.001]
[1729021363501,0.07478,66872.0,66871.0,0.002]
[1729021364907,0.07478,66872.0,66862.0,0.435592]
[1729021364908,1.12342,66872.0,66862.0,0.3608]
[1729021365102,0.07479,66863.0,66862.0,0.3608]
[1729021365297,0.17,66863.0,66862.0,0.435592]
[1729021366208,0.17,66863.0,66862.0,0.436592]
[1729021366908,0.17,66863.0,66862.0,0.437592]
[1729021367614,0.19524485,66863.0,66862.0,0.437592]
[1729021370903,0.02524485,66863.0,66862.0,0.437592]
[1729021371116,0.10003485,66863.0,66862.0,0.437592]
[1729021372206,0.02524485,66863.0,66862.0,0.437592]
[1729021373409,0.10003485,66863.0,66862.0,0.437592]
[1729021374320,0.02524485,66863.0,66862.0,0.49688902]
[1729021374808,0.02524485,66863.0,66862.0,0.437592]
[1729021375002,0.2566669,66863.0,66862.0,0.437592]
[1729021375210,0.3095692,66863.0,66862.0,0.437592]
[1729021375412,0.11532435,66863.0,66862.0,0.437592]
[1729021378209,0.11532435,66863.0,66862.0,0.076792]
[1729021378515,0.11532435,66863.0,66862.0,0.437592]
[1729021379912,0.28532435,66863.0,66862.0,0.437592]
[1729021381905,0.171,66863.0,66862.0,0.52185349]
[1729021382616,0.001,66863.0,66862.0,0.69185349]
[1729021382806,0.001,66863.0,66862.0,0.78151517]
[1729021383009,0.001,66863.0,66862.0,0.69185349]
[1729021383222,0.3608,66871.0,66870.0,0.074783]
[1729021383411,0.02457357,66871.0,66870.0,0.51984449]
[1729021383714,0.17,66882.0,66876.0,0.074776]
[1729021383915,0.00224369,66877.0,66876.0,0.44459555]
[1729021384117,0.00224369,66877.0,66876.0,0.51937155]
[1729021384309,0.00224369,66877.0,66876.0,0.60901938]
[1729021384511,0.00224369,66877.0,66876.0,0.15857155]
[1729021385412,0.00324369,66877.0,66876.0,0.15957155]
[1729021385709,0.02404523,66886.0,66884.0,0.01396]
[1729021385905,0.074758,66893.0,66889.0,0.074761]
[1729021386111,0.074758,66893.0,66890.0,0.07476]
[1729021386310,0.0535,66895.0,66890.0,0.14940611]
[1729021386515,0.074758,66892.0,66891.0,0.3608]
[1729021387021,0.074756,66894.0,66892.0,0.074758]
[1729021387223,0.0535,66895.0,66893.0,0.074756]
[1729021387413,0.17,66894.0,66893.0,0.0596376]
[1729021387617,0.0535,66895.0,66893.0,0.1343946]
[1729021387817,0.0535,66895.0,66894.0,0.074756]
[1729021388013,0.38583555,66896.0,66893.0,0.0596376]